[Event "*** Titled Tuesday Blitz"]
[Site "Chess.com"]
[Date "2021.04.20"]
[Round "3"]
[White "kreonx"]
[Black "BL4D3RUNN3R"]
[Result "0-1"]
[WhiteElo "2313"]
[BlackElo "2118"]
[TimeControl "180+1"]
[EndTime "10:26:52 PDT"]
[Termination "BL4D3RUNN3R won on time"]

1. e4 {[%clk 0:03:00.9]} 1... c6 {[%clk 0:02:59.3]} 2. d4 {[%clk 0:02:59.2]}
2... d5 {[%clk 0:02:59.2]} 3. e5 {[%clk 0:02:59]} 3... c5 {[%clk 0:02:58.9]} 4.
dxc5 {[%clk 0:02:58.3]} 4... e6 {[%clk 0:02:58.6]} 5. Nf3 {[%clk 0:02:46.3]}
5... Bxc5 {[%clk 0:02:51.5]} 6. Bd3 {[%clk 0:02:46]} 6... Nc6 {[%clk 0:02:50.3]}
7. O-O {[%clk 0:02:45.4]} 7... f6 {[%clk 0:02:50.4]} 8. Re1 {[%clk 0:02:37.8]}
8... fxe5 {[%clk 0:02:46.9]} 9. Nxe5 {[%clk 0:02:36.7]} 9... Nxe5 {[%clk
0:02:42.4]} 10. Rxe5 {[%clk 0:02:32.6]} 10... Nf6 {[%clk 0:02:41.2]} 11. Be3
{[%clk 0:02:15]} 11... Bd6 {[%clk 0:02:23.3]} 12. Bb5+ {[%clk 0:02:08.8]} 12...
Kf7 {[%clk 0:02:14.8]} 13. Rg5 {[%clk 0:02:04.1]} 13... h6 {[%clk 0:02:07]} 14.
Rg3 {[%clk 0:01:44.1]} 14... Bxg3 {[%clk 0:02:04.8]} 15. fxg3 {[%clk 0:01:41.1]}
15... Rf8 {[%clk 0:02:00.9]} 16. Bc5 {[%clk 0:01:36]} 16... Rh8 {[%clk
0:01:47.6]} 17. Nd2 {[%clk 0:01:35.3]} 17... Bd7 {[%clk 0:01:44.3]} 18. Bd3
{[%clk 0:01:33.9]} 18... Re8 {[%clk 0:01:39.5]} 19. Nf3 {[%clk 0:01:28.7]} 19...
e5 {[%clk 0:01:35.5]} 20. Be2 {[%clk 0:01:13]} 20... b6 {[%clk 0:01:20.7]} 21.
Bd6 {[%clk 0:00:57.8]} 21... e4 {[%clk 0:01:17.8]} 22. Nd4 {[%clk 0:00:49.6]}
22... Kg8 {[%clk 0:01:12.2]} 23. Bh5 {[%clk 0:00:42.7]} 23... Nxh5 {[%clk
0:01:05]} 24. Qxh5 {[%clk 0:00:43.6]} 24... Qf6 {[%clk 0:01:01.4]} 25. Qxd5+
{[%clk 0:00:21.9]} 25... Kh8 {[%clk 0:00:59.5]} 26. Rf1 {[%clk 0:00:18.9]} 26...
Qg6 {[%clk 0:00:54.2]} 27. Rf7 {[%clk 0:00:08.2]} 27... Bg4 {[%clk 0:00:40.9]}
28. Bf4 {[%clk 0:00:04.6]} 28... Rad8 {[%clk 0:00:37.1]} 0-1

[Event "*** Titled Tuesday Blitz"]
[Site "Chess.com"]
[Date "2021.04.20"]
[Round "3"]
[White "IljaJoke"]
[Black "poppy73"]
[Result "1-0"]
[WhiteElo "2487"]
[BlackElo "2211"]
[TimeControl "180+1"]
[EndTime "10:26:56 PDT"]
[Termination "IljaJoke won on time"]

1. d4 {[%clk 0:03:00.9]} 1... Nf6 {[%clk 0:02:59.7]} 2. c4 {[%clk 0:03:01.1]}
2... g6 {[%clk 0:03:00.3]} 3. Nc3 {[%clk 0:03:01.3]} 3... Bg7 {[%clk 0:03:00.8]}
4. e4 {[%clk 0:03:01.5]} 4... d6 {[%clk 0:03:01.4]} 5. Be2 {[%clk 0:03:01.9]}
5... O-O {[%clk 0:03:00.8]} 6. Be3 {[%clk 0:03:02.5]} 6... e5 {[%clk 0:03:00.2]}
7. d5 {[%clk 0:03:03]} 7... Na6 {[%clk 0:02:55.6]} 8. g4 {[%clk 0:03:02.4]} 8...
Nc5 {[%clk 0:02:50.9]} 9. f3 {[%clk 0:03:02.5]} 9... h5 {[%clk 0:02:49.3]} 10.
g5 {[%clk 0:03:02.4]} 10... Nh7 {[%clk 0:02:49.6]} 11. h4 {[%clk 0:03:02.4]}
11... a5 {[%clk 0:02:47.1]} 12. Qd2 {[%clk 0:03:00.3]} 12... f6 {[%clk
0:02:44.3]} 13. Nh3 {[%clk 0:02:59.4]} 13... f5 {[%clk 0:02:36.3]} 14. Nf2
{[%clk 0:02:55.7]} 14... b6 {[%clk 0:02:14.9]} 15. O-O-O {[%clk 0:02:49.5]}
15... f4 {[%clk 0:02:14.4]} 16. Bxc5 {[%clk 0:02:49.5]} 16... bxc5 {[%clk
0:02:14.7]} 17. Bf1 {[%clk 0:02:49.9]} 17... Rb8 {[%clk 0:02:07.7]} 18. Bh3
{[%clk 0:02:49.8]} 18... Bxh3 {[%clk 0:02:07.3]} 19. Rxh3 {[%clk 0:02:49.1]}
19... Qc8 {[%clk 0:02:05.6]} 20. Rhh1 {[%clk 0:02:44]} 20... Qa6 {[%clk
0:02:02.5]} 21. b3 {[%clk 0:02:39.9]} 21... Rb4 {[%clk 0:01:59.3]} 22. Nd3
{[%clk 0:02:39.4]} 22... Rfb8 {[%clk 0:01:48.9]} 23. Nxb4 {[%clk 0:02:37.6]}
23... axb4 {[%clk 0:01:49.1]} 24. Nb5 {[%clk 0:02:32.7]} 24... Qc8 {[%clk
0:01:05.6]} 25. Kb2 {[%clk 0:02:28]} 25... Nf8 {[%clk 0:01:02.5]} 26. Ra1 {[%clk
0:02:27.4]} 26... Nd7 {[%clk 0:00:58.5]} 27. a3 {[%clk 0:02:27.5]} 27... bxa3+
{[%clk 0:00:58.2]} 28. Rxa3 {[%clk 0:02:28.4]} 28... Nb6 {[%clk 0:00:58.4]} 29.
Ra7 {[%clk 0:02:20.2]} 29... Rb7 {[%clk 0:00:52.9]} 30. Rxb7 {[%clk 0:02:16.7]}
30... Qxb7 {[%clk 0:00:53]} 31. Ra1 {[%clk 0:02:16.7]} 31... Qc8 {[%clk
0:00:35.2]} 32. Qg2 {[%clk 0:02:16.6]} 32... c6 {[%clk 0:00:29.7]} 33. dxc6
{[%clk 0:02:16.4]} 33... Qxc6 {[%clk 0:00:29.5]} 34. Qd2 {[%clk 0:02:14.4]}
34... d5 {[%clk 0:00:26.7]} 35. Qd3 {[%clk 0:02:02.1]} 35... d4 {[%clk
0:00:23.2]} 36. Ra7 {[%clk 0:01:59]} 36... Qe6 {[%clk 0:00:17.2]} 37. Qf1 {[%clk
0:01:58.2]} 37... Nc8 {[%clk 0:00:12.4]} 38. Ra8 {[%clk 0:01:50.5]} 38... Kh7
{[%clk 0:00:12.2]} 39. Kc2 {[%clk 0:01:50.1]} 39... Qc6 {[%clk 0:00:10.4]} 40.
Ra1 {[%clk 0:01:47]} 40... Nd6 {[%clk 0:00:09]} 41. Nxd6 {[%clk 0:01:47.2]}
41... Qxd6 {[%clk 0:00:09.9]} 42. Kd3 {[%clk 0:01:47.8]} 42... Qb6 {[%clk
0:00:09.5]} 43. Kc2 {[%clk 0:01:44.1]} 43... Qb4 {[%clk 0:00:08.9]} 44. Qe1
{[%clk 0:01:44.5]} 44... Qb7 {[%clk 0:00:06.2]} 45. Qa5 {[%clk 0:01:42]} 45...
d3+ {[%clk 0:00:05.1]} 46. Kxd3 {[%clk 0:01:40]} 46... Qxb3+ {[%clk 0:00:04.5]}
47. Qc3 {[%clk 0:01:38.7]} 47... Qb7 {[%clk 0:00:04.4]} 48. Ra5 {[%clk
0:01:37.1]} 48... Qd7+ {[%clk 0:00:04.1]} 49. Kc2 {[%clk 0:01:37.2]} 49... Qh3
{[%clk 0:00:01.4]} 50. Ra7 {[%clk 0:01:31.1]} 1-0

[Event "*** Titled Tuesday Blitz"]
[Site "Chess.com"]
[Date "2021.04.20"]
[Round "3"]
[White "Beca95"]
[Black "Fh2411"]
[Result "1-0"]
[WhiteElo "2836"]
[BlackElo "2571"]
[TimeControl "180+1"]
[EndTime "10:27:00 PDT"]
[Termination "Beca95 won by checkmate"]

1. d4 {[%clk 0:03:00.9]} 1... d5 {[%clk 0:02:59.8]} 2. c4 {[%clk 0:03:00.8]}
2... c6 {[%clk 0:03:00.4]} 3. Nf3 {[%clk 0:02:59.8]} 3... Nf6 {[%clk 0:03:00.9]}
4. Qc2 {[%clk 0:02:59.9]} 4... dxc4 {[%clk 0:02:56.5]} 5. Qxc4 {[%clk
0:03:00.8]} 5... Bf5 {[%clk 0:02:54.9]} 6. g3 {[%clk 0:02:59.4]} 6... e6 {[%clk
0:02:55.1]} 7. Bg2 {[%clk 0:02:59.4]} 7... Qd5 {[%clk 0:02:29.8]} 8. Qa4 {[%clk
0:02:58.5]} 8... a5 {[%clk 0:01:46]} 9. Nc3 {[%clk 0:02:55.7]} 9... Bb4 {[%clk
0:01:43.4]} 10. O-O {[%clk 0:02:54.5]} 10... Qd8 {[%clk 0:01:35.9]} 11. a3
{[%clk 0:02:29.4]} 11... Be7 {[%clk 0:01:27.6]} 12. Ne5 {[%clk 0:02:19.4]} 12...
O-O {[%clk 0:01:08.4]} 13. e4 {[%clk 0:02:18.4]} 13... Bg6 {[%clk 0:01:08.7]}
14. Be3 {[%clk 0:02:15.2]} 14... Nbd7 {[%clk 0:01:01.8]} 15. Nxg6 {[%clk
0:02:13.9]} 15... hxg6 {[%clk 0:01:00.9]} 16. Qc2 {[%clk 0:02:06.5]} 16... Nb6
{[%clk 0:00:56.5]} 17. Rad1 {[%clk 0:02:05]} 17... Nc4 {[%clk 0:00:44.7]} 18.
Bc1 {[%clk 0:02:04.3]} 18... Qb6 {[%clk 0:00:19.4]} 19. Rfe1 {[%clk 0:02:00.5]}
19... Qa6 {[%clk 0:00:15.7]} 20. Na4 {[%clk 0:01:55.1]} 20... b5 {[%clk
0:00:14.5]} 21. Nc5 {[%clk 0:01:54.6]} 21... Bxc5 {[%clk 0:00:14.2]} 22. dxc5
{[%clk 0:01:55.5]} 22... a4 {[%clk 0:00:11.7]} 23. Bf1 {[%clk 0:01:42.4]} 23...
Na5 {[%clk 0:00:10.9]} 24. Bf4 {[%clk 0:01:37.4]} 24... Nb3 {[%clk 0:00:10.6]}
25. Rd6 {[%clk 0:01:35.9]} 25... Rfc8 {[%clk 0:00:10.1]} 26. Red1 {[%clk
0:01:31.4]} 26... Qb7 {[%clk 0:00:10.1]} 27. Be3 {[%clk 0:01:25.6]} 27... b4
{[%clk 0:00:09.2]} 28. Be2 {[%clk 0:01:23.7]} 28... Rab8 {[%clk 0:00:07.4]} 29.
g4 {[%clk 0:01:20]} 29... Ne8 {[%clk 0:00:04.2]} 30. Rd7 {[%clk 0:01:18.8]}
30... Rc7 {[%clk 0:00:04]} 31. Rd8 {[%clk 0:01:17.1]} 31... Rcc8 {[%clk
0:00:04.2]} 32. Rxc8 {[%clk 0:01:13.2]} 32... Qxc8 {[%clk 0:00:05.1]} 33. Bf4
{[%clk 0:01:01.9]} 33... Rb7 {[%clk 0:00:04.4]} 34. Ba6 {[%clk 0:01:00.7]} 34...
bxa3 {[%clk 0:00:04.3]} 35. bxa3 {[%clk 0:01:00.5]} 35... Nc7 {[%clk 0:00:03.7]}
36. Bxb7 {[%clk 0:00:59.7]} 36... Qxb7 {[%clk 0:00:04.6]} 37. Rd8+ {[%clk
0:00:55.3]} 37... Kh7 {[%clk 0:00:04]} 38. Qd3 {[%clk 0:00:53.4]} 38... Nxc5
{[%clk 0:00:01.4]} 39. Qh3# {[%clk 0:00:52.3]} 1-0

[Event "*** Titled Tuesday Blitz"]
[Site "Chess.com"]
[Date "2021.04.20"]
[Round "3"]
[White "Mikasinski"]
[Black "politeplayer"]
[Result "1-0"]
[WhiteElo "2501"]
[BlackElo "2228"]
[TimeControl "180+1"]
[EndTime "10:27:02 PDT"]
[Termination "Mikasinski won on time"]

1. e4 {[%clk 0:03:00.9]} 1... e6 {[%clk 0:02:59.9]} 2. d4 {[%clk 0:03:00.9]}
2... d5 {[%clk 0:03:00.4]} 3. Nc3 {[%clk 0:03:01.4]} 3... Bb4 {[%clk 0:02:56.5]}
4. e5 {[%clk 0:03:01.4]} 4... c5 {[%clk 0:02:55.5]} 5. a3 {[%clk 0:03:01.8]}
5... Ba5 {[%clk 0:02:55.8]} 6. Bd2 {[%clk 0:03:01.7]} 6... cxd4 {[%clk
0:02:53.6]} 7. Nb5 {[%clk 0:03:01.9]} 7... Bc7 {[%clk 0:02:52.8]} 8. Nf3 {[%clk
0:02:58.9]} 8... Nc6 {[%clk 0:02:52]} 9. Bf4 {[%clk 0:02:49.2]} 9... Nge7 {[%clk
0:02:47.4]} 10. Nfxd4 {[%clk 0:02:48]} 10... Nxd4 {[%clk 0:02:34]} 11. Qxd4
{[%clk 0:02:43.2]} 11... Nc6 {[%clk 0:02:21.2]} 12. Nxc7+ {[%clk 0:02:35.2]}
12... Qxc7 {[%clk 0:02:19.8]} 13. Qc3 {[%clk 0:02:35.8]} 13... O-O {[%clk
0:01:57.4]} 14. Bg3 {[%clk 0:02:33.8]} 14... d4 {[%clk 0:01:52.3]} 15. Qc5
{[%clk 0:02:33]} 15... Rd8 {[%clk 0:01:52.6]} 16. O-O-O {[%clk 0:02:32]} 16...
Rd5 {[%clk 0:01:42.5]} 17. Qc4 {[%clk 0:02:30.7]} 17... b5 {[%clk 0:01:39.3]}
18. Qe2 {[%clk 0:02:18.6]} 18... b4 {[%clk 0:01:29.7]} 19. Qc4 {[%clk
0:02:07.1]} 19... bxa3 {[%clk 0:01:16.2]} 20. bxa3 {[%clk 0:02:08]} 20... a5
{[%clk 0:01:04.8]} 21. f4 {[%clk 0:01:57.9]} 21... Ba6 {[%clk 0:01:01.8]} 22.
Qa4 {[%clk 0:01:55.8]} 22... d3 {[%clk 0:00:50.1]} 23. Qb3 {[%clk 0:01:19]}
23... Nd4 {[%clk 0:00:29.7]} 24. Qa2 {[%clk 0:01:16]} 24... Nxc2 {[%clk
0:00:19.2]} 25. Kd2 {[%clk 0:01:13.4]} 25... Qc5 {[%clk 0:00:15.2]} 26. Rc1
{[%clk 0:00:53.3]} 26... Qe3+ {[%clk 0:00:11.6]} 27. Kd1 {[%clk 0:00:54]} 27...
Rc8 {[%clk 0:00:08.5]} 28. Qb2 {[%clk 0:00:46.7]} 28... d2 {[%clk 0:00:06.2]}
29. Rxc2 {[%clk 0:00:40.9]} 29... Rcd8 {[%clk 0:00:02.8]} 30. Bxa6 {[%clk
0:00:38.9]} 30... Qe1+ {[%clk 0:00:02]} 31. Bxe1 {[%clk 0:00:36.4]} 31...
dxe1=Q+ {[%clk 0:00:01.5]} 32. Kxe1 {[%clk 0:00:37]} 32... Rd1+ {[%clk 0:00:02]}
33. Kf2 {[%clk 0:00:37.6]} 1-0

[Event "*** Titled Tuesday Blitz"]
[Site "Chess.com"]
[Date "2021.04.20"]
[Round "3"]
[White "CM_rui"]
[Black "Pertinhez76"]
[Result "1/2-1/2"]
[WhiteElo "2465"]
[BlackElo "2048"]
[TimeControl "180+1"]
[EndTime "10:27:04 PDT"]
[Termination "Game drawn by repetition"]

1. e4 {[%clk 0:02:59.8]} 1... e6 {[%clk 0:02:59.3]} 2. d4 {[%clk 0:02:59.9]}
2... d5 {[%clk 0:02:59.4]} 3. Nc3 {[%clk 0:03:00.4]} 3... Nf6 {[%clk 0:02:59]}
4. e5 {[%clk 0:03:00.6]} 4... Nfd7 {[%clk 0:02:59.6]} 5. f4 {[%clk 0:03:00.9]}
5... c5 {[%clk 0:03:00.5]} 6. Nf3 {[%clk 0:03:01.2]} 6... Nc6 {[%clk 0:03:01]}
7. Ne2 {[%clk 0:03:01.2]} 7... cxd4 {[%clk 0:02:57.9]} 8. Nexd4 {[%clk
0:03:01.1]} 8... Qb6 {[%clk 0:02:58.1]} 9. c3 {[%clk 0:03:00.9]} 9... Bc5 {[%clk
0:02:56.3]} 10. g3 {[%clk 0:02:55.9]} 10... O-O {[%clk 0:02:53.9]} 11. Bd3
{[%clk 0:02:56.1]} 11... a5 {[%clk 0:02:50.4]} 12. Bxh7+ {[%clk 0:02:55.8]}
12... Kxh7 {[%clk 0:02:43.1]} 13. Ng5+ {[%clk 0:02:56.2]} 13... Kg6 {[%clk
0:02:44]} 14. Qg4 {[%clk 0:02:39.2]} 14... f5 {[%clk 0:02:43.5]} 15. Qh4 {[%clk
0:02:34.9]} 15... Nf6 {[%clk 0:02:30.6]} 16. exf6 {[%clk 0:02:34.8]} 16... Bxd4
{[%clk 0:02:13.4]} 17. cxd4 {[%clk 0:02:23.8]} 17... Qxd4 {[%clk 0:01:53.6]} 18.
fxg7 {[%clk 0:02:12.1]} 18... Qxg7 {[%clk 0:01:50.3]} 19. Bd2 {[%clk 0:02:06.2]}
19... Rh8 {[%clk 0:01:42.7]} 20. Nxe6 {[%clk 0:01:41.6]} 20... Bxe6 {[%clk
0:01:36.9]} 21. Qg5+ {[%clk 0:01:41.4]} 21... Kf7 {[%clk 0:01:35.9]} 22. Qxg7+
{[%clk 0:01:36.4]} 22... Kxg7 {[%clk 0:01:36.8]} 23. O-O-O {[%clk 0:01:32.3]}
23... d4 {[%clk 0:01:33.9]} 24. Rhe1 {[%clk 0:01:28.5]} 24... Bxa2 {[%clk
0:01:29.6]} 25. Re2 {[%clk 0:01:21.2]} 25... Rac8 {[%clk 0:01:28.2]} 26. Rg1
{[%clk 0:01:03.8]} 26... Bd5 {[%clk 0:01:22.7]} 27. g4 {[%clk 0:00:57.8]} 27...
Nb4+ {[%clk 0:01:10.4]} 28. Kb1 {[%clk 0:00:56.6]} 28... Be4+ {[%clk 0:01:10.5]}
29. Ka1 {[%clk 0:00:55.5]} 29... Nc2+ {[%clk 0:01:10.4]} 30. Ka2 {[%clk
0:00:55.7]} 30... d3 {[%clk 0:01:02.7]} 31. gxf5+ {[%clk 0:00:56]} 31... Kf7
{[%clk 0:01:01.2]} 32. Rxe4 {[%clk 0:00:56.4]} 32... Rxh2 {[%clk 0:00:56.8]} 33.
Bc3 {[%clk 0:00:50.7]} 33... b5 {[%clk 0:00:56.1]} 34. Rg7+ {[%clk 0:00:49.9]}
34... Kf8 {[%clk 0:00:54.9]} 35. Ree7 {[%clk 0:00:25.6]} 35... Rxc3 {[%clk
0:00:53.6]} 36. bxc3 {[%clk 0:00:24.3]} 36... Nb4+ {[%clk 0:00:53.7]} 37. Kb3
{[%clk 0:00:23.7]} 37... d2 {[%clk 0:00:49.4]} 38. Rgf7+ {[%clk 0:00:14.8]}
38... Kg8 {[%clk 0:00:48.9]} 39. Rg7+ {[%clk 0:00:13.2]} 39... Kf8 {[%clk
0:00:49]} 40. Ref7+ {[%clk 0:00:12.3]} 40... Ke8 {[%clk 0:00:48.8]} 41. Re7+
{[%clk 0:00:13.2]} 41... Kf8 {[%clk 0:00:48.9]} 1/2-1/2

[Event "*** Titled Tuesday Blitz"]
[Site "Chess.com"]
[Date "2021.04.20"]
[Round "3"]
[White "mishanick"]
[Black "adnan_nn"]
[Result "1-0"]
[WhiteElo "2975"]
[BlackElo "2666"]
[TimeControl "180+1"]
[EndTime "10:27:05 PDT"]
[Termination "mishanick won by resignation"]

1. e4 {[%clk 0:03:00.9]} 1... c5 {[%clk 0:02:54.5]} 2. Nf3 {[%clk 0:02:58.1]}
2... Nf6 {[%clk 0:02:40.5]} 3. e5 {[%clk 0:02:53.1]} 3... Nd5 {[%clk 0:02:39.9]}
4. Nc3 {[%clk 0:02:53.1]} 4... e6 {[%clk 0:02:40]} 5. b3 {[%clk 0:02:49.6]} 5...
Nxc3 {[%clk 0:02:35.4]} 6. dxc3 {[%clk 0:02:50.5]} 6... d5 {[%clk 0:02:35.8]} 7.
exd6 {[%clk 0:02:49.3]} 7... Bxd6 {[%clk 0:02:34.7]} 8. c4 {[%clk 0:02:48.6]}
8... O-O {[%clk 0:02:31.4]} 9. Bb2 {[%clk 0:02:48.3]} 9... Nc6 {[%clk
0:02:29.1]} 10. Bd3 {[%clk 0:02:47.9]} 10... Be7 {[%clk 0:02:27.4]} 11. h4
{[%clk 0:02:44.4]} 11... h6 {[%clk 0:02:24.7]} 12. Be4 {[%clk 0:02:40.4]} 12...
Qxd1+ {[%clk 0:02:18.8]} 13. Rxd1 {[%clk 0:02:39.4]} 13... Rd8 {[%clk
0:02:19.4]} 14. Rxd8+ {[%clk 0:02:28.1]} 14... Nxd8 {[%clk 0:02:13.5]} 15. g4
{[%clk 0:02:27]} 15... g6 {[%clk 0:02:08.5]} 16. g5 {[%clk 0:02:06.2]} 16... h5
{[%clk 0:02:03.4]} 17. Bf6 {[%clk 0:02:06.5]} 17... Bxf6 {[%clk 0:01:50.8]} 18.
gxf6 {[%clk 0:02:07.4]} 18... a5 {[%clk 0:01:50.8]} 19. Ne5 {[%clk 0:02:03.4]}
19... a4 {[%clk 0:01:43.9]} 20. Ke2 {[%clk 0:02:02.6]} 20... Kf8 {[%clk
0:01:35]} 21. Rd1 {[%clk 0:01:55.2]} 21... Ke8 {[%clk 0:01:31.8]} 22. Ke3 {[%clk
0:01:36.2]} 22... axb3 {[%clk 0:01:11.9]} 23. axb3 {[%clk 0:01:34.5]} 23... Rb8
{[%clk 0:01:11]} 24. Kf4 {[%clk 0:01:22.7]} 24... Ra8 {[%clk 0:00:56.7]} 25. Kg5
{[%clk 0:01:21.2]} 25... Ra6 {[%clk 0:00:43.3]} 26. Rxd8+ {[%clk 0:01:20.6]}
26... Kxd8 {[%clk 0:00:41.1]} 27. Nxf7+ {[%clk 0:01:21.5]} 27... Ke8 {[%clk
0:00:40.6]} 28. Ne5 {[%clk 0:01:18.4]} 28... Kf8 {[%clk 0:00:36.4]} 29. Kxg6
{[%clk 0:01:08.6]} 29... Ra1 {[%clk 0:00:34.3]} 30. f7 {[%clk 0:01:08.8]} 30...
Rf1 {[%clk 0:00:26.4]} 31. f3 {[%clk 0:01:07.9]} 31... b6 {[%clk 0:00:21.2]} 32.
Kf6 {[%clk 0:01:08]} 32... Rg1 {[%clk 0:00:19.9]} 33. Ng6+ {[%clk 0:01:07.1]}
33... Rxg6+ {[%clk 0:00:20.6]} 34. Bxg6 {[%clk 0:01:07.6]} 34... e5 {[%clk
0:00:20.4]} 35. Bxh5 {[%clk 0:01:07.2]} 35... e4 {[%clk 0:00:18.6]} 36. fxe4
{[%clk 0:01:08.1]} 36... b5 {[%clk 0:00:18.2]} 37. cxb5 {[%clk 0:01:07.6]} 37...
c4 {[%clk 0:00:18.2]} 38. b4 {[%clk 0:01:07.7]} 38... c3 {[%clk 0:00:17.9]} 39.
e5 {[%clk 0:01:07.3]} 39... Bf5 {[%clk 0:00:17.8]} 40. b6 {[%clk 0:01:07.3]}
40... Bd7 {[%clk 0:00:08.4]} 41. b7 {[%clk 0:01:07]} 41... Bc8 {[%clk
0:00:05.8]} 42. e6 {[%clk 0:01:07.4]} 42... Bxe6 {[%clk 0:00:05.3]} 43. b8=Q+
{[%clk 0:01:07.3]} 1-0

[Event "*** Titled Tuesday Blitz"]
[Site "Chess.com"]
[Date "2021.04.20"]
[Round "3"]
[White "Oligan22"]
[Black "lacafi"]
[Result "1-0"]
[WhiteElo "2490"]
[BlackElo "2211"]
[TimeControl "180+1"]
[EndTime "10:27:05 PDT"]
[Termination "Oligan22 won by checkmate"]

1. Nf3 {[%clk 0:03:00.9]} 1... f5 {[%clk 0:02:59]} 2. g3 {[%clk 0:02:53.1]} 2...
Nf6 {[%clk 0:02:59.4]} 3. Bg2 {[%clk 0:02:53.4]} 3... g6 {[%clk 0:03:00]} 4. O-O
{[%clk 0:02:52.9]} 4... Bg7 {[%clk 0:03:00.6]} 5. d4 {[%clk 0:02:53.4]} 5... O-O
{[%clk 0:03:00.7]} 6. c4 {[%clk 0:02:54]} 6... d6 {[%clk 0:03:00.6]} 7. Nc3
{[%clk 0:02:54.6]} 7... Nc6 {[%clk 0:03:00.8]} 8. Re1 {[%clk 0:02:55.3]} 8... e5
{[%clk 0:02:33.3]} 9. d5 {[%clk 0:02:43]} 9... Ne7 {[%clk 0:02:25.2]} 10. e4
{[%clk 0:02:43.1]} 10... h6 {[%clk 0:02:22.3]} 11. a3 {[%clk 0:02:28.1]} 11...
g5 {[%clk 0:02:21.4]} 12. exf5 {[%clk 0:02:19.1]} 12... Bxf5 {[%clk 0:02:15.9]}
13. b4 {[%clk 0:02:18.4]} 13... Bg4 {[%clk 0:02:11.6]} 14. h3 {[%clk 0:02:15.4]}
14... Bh5 {[%clk 0:02:11.2]} 15. g4 {[%clk 0:02:01.4]} 15... Bf7 {[%clk
0:01:38.1]} 16. Be3 {[%clk 0:02:01.3]} 16... Ng6 {[%clk 0:01:37.5]} 17. Qc2
{[%clk 0:01:58.6]} 17... Qd7 {[%clk 0:01:36.6]} 18. Rad1 {[%clk 0:01:51.5]}
18... Rae8 {[%clk 0:01:13.6]} 19. c5 {[%clk 0:01:51.6]} 19... Nf4 {[%clk
0:00:43]} 20. Bxf4 {[%clk 0:01:50.2]} 20... exf4 {[%clk 0:00:42.9]} 21. c6
{[%clk 0:01:47]} 21... bxc6 {[%clk 0:00:40.2]} 22. dxc6 {[%clk 0:01:47.9]} 22...
Qc8 {[%clk 0:00:33]} 23. Nb5 {[%clk 0:01:40.1]} 23... a6 {[%clk 0:00:29.1]} 24.
Nbd4 {[%clk 0:01:37.7]} 24... Nxg4 {[%clk 0:00:16.8]} 25. hxg4 {[%clk
0:01:32.1]} 25... Qxg4 {[%clk 0:00:17.3]} 26. Qf5 {[%clk 0:01:31.5]} 26... Qh5
{[%clk 0:00:17.3]} 27. Qh3 {[%clk 0:01:05.6]} 27... Qg6 {[%clk 0:00:16.2]} 28.
Qg4 {[%clk 0:01:06]} 28... Bd5 {[%clk 0:00:11.7]} 29. Ne5 {[%clk 0:00:39.8]}
29... Bxe5 {[%clk 0:00:08.1]} 30. Bxd5+ {[%clk 0:00:39.7]} 30... Kg7 {[%clk
0:00:07.9]} 31. Ne6+ {[%clk 0:00:38.6]} 31... Rxe6 {[%clk 0:00:06.7]} 32. Qxe6
{[%clk 0:00:39.5]} 32... Rf6 {[%clk 0:00:06.4]} 33. Qe7+ {[%clk 0:00:38]} 33...
Kh8 {[%clk 0:00:06.4]} 34. Rxe5 {[%clk 0:00:33.8]} 34... dxe5 {[%clk 0:00:06]}
35. Be4 {[%clk 0:00:34.3]} 35... Qxe4 {[%clk 0:00:03]} 36. Rd8+ {[%clk
0:00:33.8]} 36... Rf8 {[%clk 0:00:03.5]} 37. Rxf8# {[%clk 0:00:33.4]} 1-0

[Event "*** Titled Tuesday Blitz"]
[Site "Chess.com"]
[Date "2021.04.20"]
[Round "3"]
[White "fabianvivasz"]
[Black "Reader777"]
[Result "0-1"]
[WhiteElo "2339"]
[BlackElo "2708"]
[TimeControl "180+1"]
[EndTime "10:27:06 PDT"]
[Termination "Reader777 won on time"]

1. c4 {[%clk 0:01:29]} 1... e5 {[%clk 0:02:58.7]} 2. Nc3 {[%clk 0:01:28.8]} 2...
Nf6 {[%clk 0:02:58.6]} 3. Nf3 {[%clk 0:01:28]} 3... Nc6 {[%clk 0:02:57.9]} 4. e4
{[%clk 0:01:28.4]} 4... Bb4 {[%clk 0:02:57.4]} 5. d3 {[%clk 0:01:28.7]} 5... d6
{[%clk 0:02:57]} 6. a3 {[%clk 0:01:27.4]} 6... Bc5 {[%clk 0:02:56.4]} 7. b4
{[%clk 0:01:25.7]} 7... Bb6 {[%clk 0:02:54.7]} 8. Be3 {[%clk 0:01:15.4]} 8...
Bxe3 {[%clk 0:02:51.6]} 9. fxe3 {[%clk 0:01:16.3]} 9... O-O {[%clk 0:02:49.1]}
10. Be2 {[%clk 0:01:15.1]} 10... Ng4 {[%clk 0:02:45]} 11. Qd2 {[%clk 0:01:15.1]}
11... f5 {[%clk 0:02:44.7]} 12. exf5 {[%clk 0:01:09.3]} 12... Bxf5 {[%clk
0:02:45.6]} 13. O-O {[%clk 0:01:06]} 13... Bg6 {[%clk 0:02:25.1]} 14. h3 {[%clk
0:00:52.8]} 14... Nf6 {[%clk 0:02:23.5]} 15. Nh4 {[%clk 0:00:51.8]} 15... Bf7
{[%clk 0:02:18]} 16. Nf5 {[%clk 0:00:47]} 16... Be6 {[%clk 0:01:45.1]} 17. d4
{[%clk 0:00:39.1]} 17... exd4 {[%clk 0:01:39.9]} 18. exd4 {[%clk 0:00:40]} 18...
d5 {[%clk 0:01:14.9]} 19. c5 {[%clk 0:00:32.4]} 19... Ne4 {[%clk 0:01:14.4]} 20.
Nxe4 {[%clk 0:00:21.9]} 20... dxe4 {[%clk 0:01:15.3]} 21. Bg4 {[%clk 0:00:10.6]}
21... Bxf5 {[%clk 0:01:05.7]} 22. Rxf5 {[%clk 0:00:07.1]} 22... Qxd4+ {[%clk
0:00:39.1]} 23. Qxd4 {[%clk 0:00:04.2]} 23... Nxd4 {[%clk 0:00:40]} 24. Re5
{[%clk 0:00:01.4]} 24... Rae8 {[%clk 0:00:38]} 25. Rxe8 {[%clk 0:00:01.6]} 25...
Rxe8 {[%clk 0:00:38.9]} 26. Rd1 {[%clk 0:00:01.9]} 26... Nc6 {[%clk 0:00:25]}
27. Kf2 {[%clk 0:00:01.2]} 27... Ne5 {[%clk 0:00:21.7]} 28. Ke3 {[%clk
0:00:01.1]} 28... Nc4+ {[%clk 0:00:21.8]} 0-1